Cogmind - Beta 15 @@@ ROGUE MODE // 2025.07.16 @ 01:35:02 Player: BVrutally Odd Result: Destroyed by 99-TNT with 99-TNT's Nukerbomber Performance ------------- Evolutions (1) 500 Regions Visited (6) 1200 Robots Destroyed (93) 465 Value Destroyed (1777) 1777 Prototype IDs (6) 120 Alien Tech Used (0) 0 Bonus (60) 60 TOTAL SCORE: 4122 Bonus ------- Follower Combat Kills 60 Cogmind --------- Core Integrity 0/400 Matter 277/300 Energy 230/250 System Corruption 0% Temperature Cool (0) Movement Treading (320) Ox2 Location -8/Mines Parts ------- > --- POWER (1) -------- Ion Engine > --- PROPULSION (3) --- Light Treads Makeshift Leg > --- UTILITY (2) ------ Disposable Heat Sink High-capacity Storage Unit > --- WEAPON (3) ------- Autogun Autogun Enhanced Autogun > --- INVENTORY (20) --- Reinforced Fission Core Makeshift Leg Makeshift Leg Combat Antigrav System Gravity Neutralizer Experimental Sensor Array Seismic Detector Improved Targeting Computer Advanced Weapon Cycler Light Armor Plating Medium Armor Plating Medium Armor Plating Medium Armor Plating Hardened Light Armor Plating Hacking Suite Grenade Launcher Mini Grenade Launcher Peak State ------------ > --- POWER ------------ Makeshift Power Source > --- PROPULSION ------- Light Treads Light Treads > --- UTILITY ---------- Disposable Heat Sink System Purifier > --- WEAPON ----------- Enhanced Autogun Enhanced Autogun Enhanced Autogun > --- INVENTORY -------- Experimental Sensor Array Improved Targeting Computer Medium Armor Plating Hacking Suite Grenade Launcher [Rating: 30] Favorites ----------- Power Ion Engine Engine Ion Engine Power Core Light Nuclear Core Propulsion Light Treads Treads Light Treads Leg Makeshift Leg Utility High-capacity Storage Unit Device Seismic Detector Storage High-capacity Storage Unit Processor Core Analyzer Protection Hardened Light Armor Plating Weapon Enhanced Autogun Energy Gun Medium Laser Energy Cannon Advanced Beam Cannon Ballistic Gun Enhanced Autogun Launcher Grenade Launcher Special Weapon Mining Laser Build | -11 -10 -10 -9 -9 -9 -8 ------- Run | Yrd Mat Min Mat Min Exi Min Slots Evolved 2 | . . . 2 . . . Power . | . . . . . . . Propulsion 1 | . . . 1 . . . Utility . | . . . . . . . Weapon 1 | . . . 1 . . . Parts Attached 57 | 6 10 5 19 4 12 1 Power 7 | 1 1 1 2 . 2 . Engine 6 | 1 1 1 1 . 2 . Core 1 | . . . 1 . . . Reactor . | . . . . . . . Propulsion 15 | 2 1 2 6 . 4 . Treads 13 | 2 1 2 6 . 2 . Leg 2 | . . . . . 2 . Wheel . | . . . . . . . Hover . | . . . . . . . Flight . | . . . . . . . Utility 12 | 1 3 1 2 1 4 . Device 7 | . 2 1 . 1 3 . Storage 3 | 1 1 . 1 . . . Processor 1 | . . . . . 1 . Hackware . | . . . . . . . Protection 1 | . . . 1 . . . Artifact . | . . . . . . . Weapon 23 | 2 5 1 9 3 2 1 Energy Gun 3 | 1 1 1 . . . . Energy Cannon 1 | . . . 1 . . . Ballistic Gun 15 | 1 2 . 8 1 2 1 Ballistic Cannon . | . . . . . . . Launcher 3 | . 1 . . 2 . . Special Weapon 1 | . 1 . . . . . Impact Weapon . | . . . . . . . Slashing Weapon . | . . . . . . . Piercing Weapon . | . . . . . . . Special Melee Weapon . | . . . . . . . Unidentified Prototypes 6 | . . . 3 1 2 . Parts Lost 16 | . . 5 2 . 6 3 Power 3 | . . 1 1 . 1 . Propulsion 8 | . . 2 . . 5 1 Utility 1 | . . 1 . . . . Weapon 4 | . . 1 1 . . 2 Highest Loss Streak 6 | . . 2 1 . 6 3 To Critical Strikes 5 | . . . . . 5 . Average Backups 12 | 2 9 8 11 20 14 19 Power . | . . . . . . 1 Propulsion 1 | 1 3 2 1 2 . 3 Utility 5 | . . 2 4 9 8 11 Weapon 4 | . 4 4 5 7 3 4 Tool/Special . | . . . . . . . Unused Backups 24 | . 3 . 5 . 6 10 Power 5 | . . . 1 . 3 1 Propulsion 4 | . 1 . 1 . . 2 Utility 12 | . . . 2 . 3 7 Weapon 3 | . 2 . 1 . . . Tool/Special . | . . . . . . . Average Slot Usage (%) 91 | . 98 99 97 100 81 96 Engine 8 | . 13 13 3 . 6 11 Core 2 | . . . 7 11 2 . Treads 26 | . 27 27 31 33 22 20 Device 9 | . 12 13 2 3 10 11 Storage 11 | . 14 14 11 11 8 11 Protection 3 | . . . 8 7 2 . Energy Gun 3 | . 4 8 7 . . . Ballistic Gun 23 | . 22 15 23 31 26 31 Launcher 1 | . . 4 . 1 . . Peak Build Rating 30 | 6 8 8 21 28 30 29 Average Rating 15 | 5 7 7 16 23 21 27 On Entrance 13 | . 6 8 8 21 22 29 Naked Turns . | . . . . . . . Heaviest Build 59 | 13 20 21 59 59 59 55 Greatest Support 60 | 40 40 40 60 60 60 40 Greatest Overweight (x) 3 | . . . . . 3 1 Average Overweight (x) . | . . . . . . 1 Largest Inventory Capacity 20 | 8 10 10 20 20 20 20 Average Capacity 13 | 7 9 10 14 20 16 20 Most Carried 20 | 3 10 10 20 20 20 20 Average Carried 12 | 2 9 8 11 19 14 19 Final Capacity 20 | 8 10 10 20 20 20 20 Final Carried 20 | 3 10 8 20 20 20 17 Class Distribution -------------------- 43% | Mutant 29% | Gunner 17% | Tank 6% | Scavenger-Gunner Dominant Class ---------------- Mutant | -10/Materials Mutant | -10/Mines Tank | -9/Materials Tank | -9/Mines Gunner | -9/Exiles Scavenger-Gunner | -8/Mines Resources | -11 -10 -10 -9 -9 -9 -8 ----------- Run | Yrd Mat Min Mat Min Exi Min Matter Collected 3311 | 272 474 280 878 169 1238 . Remotely . | . . . . . . . Salvage Created 3093 | 91 725 334 1228 197 518 . Parts 233 | 3 48 22 98 9 53 . Haulers Intercepted 5 | . 2 . 3 . . . Recyclers Shooed 2 | . . . 2 . . . Parts Field Recycled . | . . . . . . . Retrieved Matter . | . . . . . . . Parts Self-Destructed . | . . . . . . . Prevented . | . . . . . . . Kills | -11 -10 -10 -9 -9 -9 -8 ------- Run | Yrd Mat Min Mat Min Exi Min Combat Hostiles Destroyed 74 | . 14 9 28 20 3 . Guns 44 | . 10 7 23 3 1 . AOE 29 | . 4 2 4 17 2 . Classes Destroyed 14 | 1 6 2 2 1 2 . Worker 5 | . 2 2 1 . . . Builder 1 | . . . 1 . . . Tunneler 4 | . . 2 1 1 . . Hauler 5 | . 2 . 3 . . . Recycler 6 | 1 2 . 2 1 . . Operator 2 | . 1 . 1 . . . Turret 1 | . . . . . 1 . Watcher 6 | . 3 . 3 . . . Swarmer 20 | . 4 . 16 . . . Grunt 23 | . 10 7 5 1 . . Sentry 7 | . . . 7 . . . Demolisher 2 | . . . . 2 . . Zionite 8 | . . . . . 8 . Assembled 21 | . . 2 . 17 2 . Best Kill Streak 17 | 1 5 4 9 17 8 . Combat Bots Only 17 | . 4 2 9 17 2 . Max Kills in Single Turn 8 | 1 2 1 3 8 2 . Gunslinging 1 | . 1 . 1 . . . Exploded 8 | . 1 1 3 8 2 . Melee . | . . . . . . . Uniques/NPCs Destroyed 4 | . . . . . 4 . 8R-AWN (-9/Exiles) EX-HEX (-9/Exiles) EX-DEC (-9/Exiles) EX-BIN (-9/Exiles) Combat | -11 -10 -10 -9 -9 -9 -8 -------- Run | Yrd Mat Min Mat Min Exi Min Hostile Shots Fired 275 | . 40 55 96 14 62 8 Missed 66 | . 12 16 22 5 11 . Hits 209 | . 28 39 74 9 51 8 Melee 4 | . . 4 . . . . Projectile 205 | . 28 35 74 9 51 8 AOE 13 | . . . . 4 . 9 Critical Strikes 29 | . . 2 1 . 26 . Damage Taken 3614 | . 326 618 837 197 920 716 Core 600 | . 44 153 93 15 79 216 Absorbed by Shields . | . . . . . . . Core Remaining (%) 60 | 100 . 21 . . . . Volleys Fired 269 | 4 58 44 75 10 77 1 Largest 3 | 2 2 2 3 3 3 2 Hottest 138 | 60 100 70 138 69 75 50 Shots Fired 613 | 8 106 81 195 26 195 2 Gun 560 | 8 96 74 183 18 179 2 Cannon 6 | . . . 6 . . . Launcher 41 | . 7 7 3 8 16 . Special 6 | . 3 . 3 . . . Kinetic 478 | 4 78 55 142 18 179 2 Thermal 94 | 4 21 19 50 . . . Explosive 41 | . 7 7 3 8 16 . Electromagnetic . | . . . . . . . Robot Hit Streak 18 | 5 9 7 18 8 12 4 Robot Miss Streak 5 | 1 5 3 3 1 3 . Penetration Max . | . . . . . . . Secondary Targets 5 | . 1 . 3 1 . . Max Gunslinging Chain 1 | . 1 . 1 1 . . Shots Hit Robots 344 | 6 60 45 114 11 106 2 Core Hits 203 | 2 40 24 54 37 46 . Critical Kills 1 | . . . 1 . . . Critical Parts Destroyed 4 | . . 1 . . 3 . Critical Strikes 9 | . . 2 4 . 3 . Burn 3 | . . 1 2 . . . Meltdown 1 | . . . 1 . . . Destroy 5 | . . 1 1 . 3 . Melee Attacks . | . . . . . . . Impact . | . . . . . . . Slashing . | . . . . . . . Piercing . | . . . . . . . Sneak Attacks . | . . . . . . . Combat Hostiles . | . . . . . . . Follow-up Attacks . | . . . . . . . Damage Inflicted 7526 | 75 1179 796 1923 1239 2291 23 Guns 4940 | 75 781 572 1574 154 1761 23 Cannons 123 | . . . 123 . . . Explosions 2463 | . 398 224 226 1085 530 . Melee . | . . . . . . . Ramming . | . . . . . . . Kinetic 4256 | 30 657 409 1222 154 1761 23 Thermal 807 | 45 124 163 475 . . . Explosive 2463 | . 398 224 226 1085 530 . Electromagnetic . | . . . . . . . Impact . | . . . . . . . Slashing . | . . . . . . . Piercing . | . . . . . . . Highest Corruption 3 | . . . 2 2 3 . Average Corruption 2 | . . . 2 2 2 . Corruption Purged 3 | . . . . . 3 . Corruption Blocked . | . . . . . . . Effects 34 | . . . 13 3 18 . Message Errors 3 | . . . 1 . 2 . Matter Fused 13 | . . . 4 1 8 . Heat Flow Errors 7 | . . . 3 1 3 . Energy Discharges 3 | . . . 1 1 1 . Data Loss (minor) 1 | . . . 1 . . . Data Loss (major) 1 | . . . . . 1 . Misfires 3 | . . . 1 . 2 . Alerts 2 | . . . 2 . . . Weapon Failures 1 | . . . . . 1 . Overload Shots . | . . . . . . . Overflow Damage 80 | . 10 2 . 46 22 . Projectiles . | . . . . . . . Explosions 80 | . 10 2 . 46 22 . Melee . | . . . . . . . Knockbacks . | . . . . . . . Impact . | . . . . . . . Kinetic . | . . . . . . . Secondary . | . . . . . . . Self-Inflicted Damage 58 | . . 19 28 . 11 . Shots 3 | . . 1 1 . 1 . Rammed . | . . . . . . . Targets Rammed . | . . . . . . . Kicked . | . . . . . . . Crushed . | . . . . . . . Highest Temperature 350 | . 24 63 350 196 260 4 Average Temperature 65 | . 10 22 75 41 87 3 Received Heat Transfer 612 | . 129 300 174 . 9 . Effects 2 | . . . 1 . 1 . Energy Bleed 2 | . . . 1 . 1 . Siege Activations . | . . . . . . . Martial Activations . | . . . . . . . Shielding Activations . | . . . . . . . Robots Disrupted . | . . . . . . . Combat Hostiles . | . . . . . . . Robots Corrupted . | . . . . . . . Combat Hostiles . | . . . . . . . Parts Fried . | . . . . . . . Impact Corruptions . | . . . . . . . Robots Melted 1 | . . . 1 . . . Combat Hostiles 1 | . . . 1 . . . Parts Melted 1 | . . . 1 . . . Heat Transferred 2348 | 100 287 555 1406 . . . Parts Sabotaged . | . . . . . . . Parts Stolen . | . . . . . . . Parts Stripped . | . . . . . . . Power Chain Reactions . | . . . . . . . Alert | -11 -10 -10 -9 -9 -9 -8 ------- Run | Yrd Mat Min Mat Min Exi Min Maximum Alert Level 1 | . . . 1 . . . Low Security (%) 87 | 100 100 100 61 100 . 100 Level 1 12 | . . . 38 . . . Level 2 . | . . . . . . . Level 3 . | . . . . . . . Level 4 . | . . . . . . . Level 5 . | . . . . . . . High Security . | . . . . . . . Max Security . | . . . . . . . Peak Influence 377 | 5 128 82 377 155 . . Initial 143 | . . 32 . 143 . . Average 76 | . 32 17 173 83 . . Influence Increases 1698 | 5 450 274 855 114 . . Destroy 0b10 Robot/C 1080 | . 280 180 560 60 . . Destroy 0b10 Robot/NC 145 | 5 50 20 60 10 . . Destroy Leader 292 | . 80 30 162 20 . . Allied During Kill 6 | . . 6 . . . . Successful Hack 31 | . 13 . 18 . . . Destroy Structure 99 | . 27 23 25 24 . . Lose Combat Pursuer 45 | . . 15 30 . . . Influence Decreases 1698 | 5 366 356 488 416 67 . Entered New Map 347 | . . 52 2 226 67 . Time Decay 1310 | 5 366 283 466 190 . . Lost Part 41 | . . 21 20 . . . Squads Dispatched 6 | . 2 . 3 1 . . Investigation 2 | . . . 1 1 . . Extermination . | . . . . . . . Reinforcement 4 | . 2 . 2 . . . Assault . | . . . . . . . Garrison . | . . . . . . . Intercept . | . . . . . . . Searches Triggered . | . . . . . . . Construction Impeded . | . . . . . . . Haulers Reinforced . | . . . . . . . Active Scanning Responses . | . . . . . . . Cargo Convoy Interrupts . | . . . . . . . Stealth | -11 -10 -10 -9 -9 -9 -8 --------- Run | Yrd Mat Min Mat Min Exi Min Distress Signals 9 | . 2 . 7 . . . Communications Jammed . | . . . . . . . Distress Signals . | . . . . . . . Times Spotted 107 | . 23 12 37 21 13 1 Peak Tracking Total 16 | . 5 2 5 16 9 1 Tactical Retreats 6 | . . 2 2 . 2 . Traps | -11 -10 -10 -9 -9 -9 -8 ------- Run | Yrd Mat Min Mat Min Exi Min Traps Triggered 7 | . 3 . 4 . . . Indirectly . | . . . . . . . Trap Hack Attempts . | . . . . . . . Triggered . | . . . . . . . Disarmed . | . . . . . . . Reprogrammed . | . . . . . . . Reused . | . . . . . . . Traps Extracted . | . . . . . . . Installed . | . . . . . . . Triggered . | . . . . . . . Machines | -11 -10 -10 -9 -9 -9 -8 ---------- Run | Yrd Mat Min Mat Min Exi Min Machines Disabled 13 | . . . . . 13 . Max in Single Turn 2 | . . . . . 2 . Machines Repaired . | . . . . . . . Machines Dismantled . | . . . . . . . Machines Sabotaged . | . . . . . . . Overloaded Fab Kills . | . . . . . . . Hacking | -11 -10 -10 -9 -9 -9 -8 --------- Run | Yrd Mat Min Mat Min Exi Min Machines Accessed 12 | . 4 . 6 1 1 . Terminals 8 | . 3 . 5 . . . Fabricators . | . . . . . . . Repair Stations . | . . . . . . . Recycling Units 2 | . 1 . 1 . . . Scanalyzers . | . . . . . . . Garrison Access . | . . . . . . . Total Hacks 20 | . 10 . 8 1 1 . Successful 9 | . 2 . 5 1 1 . Failed 11 | . 8 . 3 . . . Catastrophic 2 | . 2 . . . . . Database Lockouts . | . . . . . . . Manual 11 | . 4 . 6 . 1 . Terminals 15 | . 8 . 7 . . . Fabricators . | . . . . . . . Repair Stations . | . . . . . . . Recycling Units 3 | . 2 . 1 . . . Scanalyzers . | . . . . . . . Garrison Access . | . . . . . . . Terminal Hacks 8 | . 2 . 4 1 1 . Record 1 | . . . . . 1 . Open Door 1 | . . . . 1 . . Registered Components 1 | . 1 . . . . . Zone Layout 5 | . 1 . 4 . . . Fabricator Hacks . | . . . . . . . Repair Station Hacks . | . . . . . . . Recycling Unit Hacks 1 | . . . 1 . . . Retrieve Components 1 | . . . 1 . . . Scanalyzer . | . . . . . . . Garrison Access Hacks . | . . . . . . . Unauthorized Hacks . | . . . . . . . Terminals . | . . . . . . . Fabricators . | . . . . . . . Repair Stations . | . . . . . . . Recycling Units . | . . . . . . . Scanalyzers . | . . . . . . . Garrison Access . | . . . . . . . Data Cores Recovered . | . . . . . . . Used . | . . . . . . . Hacking Detections 5 | . 3 . 2 . . . Full Trace Events 1 | . 1 . . . . . Feedback Events . | . . . . . . . Feedback Blocked . | . . . . . . . Robot Schematics Acquired . | . . . . . . . Robots Built . | . . . . . . . Authchips . | . . . . . . . Time . | . . . . . . . Total Robot Build Rating . | . . . . . . . Part Schematics Acquired . | . . . . . . . Parts Built . | . . . . . . . Authchips . | . . . . . . . Time . | . . . . . . . Total Part Build Rating . | . . . . . . . Parts Repaired . | . . . . . . . Time . | . . . . . . . Parts Recycled . | . . . . . . . Recycled Matter . | . . . . . . . Retrieved Matter . | . . . . . . . Retrieved Components . | . . . . . . . Parts Scanalyzed . | . . . . . . . Part Schematics Acquired . | . . . . . . . Parts Damaged . | . . . . . . . Bothacking | -11 -10 -10 -9 -9 -9 -8 ------------ Run | Yrd Mat Min Mat Min Exi Min Used RIF Installer . | . . . . . . . Robots Hacked . | . . . . . . . Non-combat . | . . . . . . . Combat . | . . . . . . . Robot Hacks Applied . | . . . . . . . Relay Couplers Released . | . . . . . . . Fabnet Peak Effective % . | . . . . . . . Robots Rewired . | . . . . . . . Allies Hacked . | . . . . . . . Hacks Repelled . | . . . . . . . Allies | -11 -10 -10 -9 -9 -9 -8 -------- Run | Yrd Mat Min Mat Min Exi Min Total Allies 3 | . . 3 . . . . Largest Group 3 | . . 3 . . . . Highest-Rated Group 40 | . . 40 . . . . Highest-Rated Ally 16 | . . 16 . . . . Total Orders 1 | . . 1 . . . . STAY 1 | . . 1 . . . . Ally Attacks 12 | . . 11 . . . 1 Total Damage 171 | . . 136 . . . 35 Kills 2 | . . 2 . . . . Allies Corrupted . | . . . . . . . Allies Melted . | . . . . . . . Turrets Deployed 1 | . . . . . . 1 Intel | -11 -10 -10 -9 -9 -9 -8 ------- Run | Yrd Mat Min Mat Min Exi Min Active Infowar (turns) 2576 | . 1211 971 277 117 . . Sensors 117 | . . . . 117 . . Seismic 2459 | . 1211 971 277 . . . Robot Analysis Total . | . . . . . . . Derelict Logs Recovered 1 | . . 1 . . . . Drone Launches . | . . . . . . . Drone Recoveries . | . . . . . . . Exploration | -11 -10 -10 -9 -9 -9 -8 ------------- Run | Yrd Mat Min Mat Min Exi Min Turns Passed 7662 | 162 1524 1009 1419 390 3113 45 Spaces Moved 3485 | 85 662 512 657 198 1368 3 Core 123 | 5 . . . . 118 . Treads 3362 | 80 662 512 657 198 1250 3 Legs . | . . . . . . . Wheels . | . . . . . . . Hover . | . . . . . . . Flight . | . . . . . . . Fastest Speed 50 | 50 160 160 160 160 160 240 Average Speed 177 | 153 160 160 160 160 204 240 Slowest Speed 240 | 160 160 160 160 160 240 240 Overloaded Moves . | . . . . . . . Propulsion Burnouts . | . . . . . . . Robots Hopped . | . . . . . . . Potential Cave-ins . | . . . . . . . Cave-ins Triggered . | . . . . . . . Exploration Rate (%) 56 | 5 96 85 68 46 89 3 Regions Visited 6 Branch Regions 4 Pre-discovered Areas 1 | . . . . . 1 . Known Exits Taken 1 | . . 1 . . . . Unknown Exits Taken 5 | 1 1 . 1 1 1 . Scrap Searched 2 | . . 1 . 1 . . Spaces Dug 5 | . 3 . 2 . . . Terrain Destroyed 145 | . 34 28 27 43 13 . Melee . | . . . . . . . Projectile 6 | . 3 . 3 . . . AOE 139 | . 31 28 24 43 13 . Terrain Rammed . | . . . . . . . Walls Destroyed . | . . . . . . . Machines Disabled . | . . . . . . . Actions | -11 -10 -10 -9 -9 -9 -8 --------- Run | Yrd Mat Min Mat Min Exi Min Total 4502 | 106 1012 620 869 247 1608 40 Wait 563 | 9 258 55 75 26 107 33 Move 3479 | 84 661 511 656 197 1367 3 Hop . | . . . . . . . Pick Up 59 | 3 10 2 19 2 23 . Fast Attach 23 | 6 5 2 4 . 6 . Attach 12 | . . 3 2 . 5 2 Detach . | . . . . . . . Swap 55 | . 12 2 22 10 9 . Drop 42 | . 8 1 16 2 14 1 Fire 269 | 4 58 44 75 10 77 1 Melee . | . . . . . . . Ram . | . . . . . . . Kick . | . . . . . . . Crush . | . . . . . . . Escape Stasis . | . . . . . . . Rewire . | . . . . . . . Trap . | . . . . . . . Miscellaneous . | . . . . . . . Route ------- -11/Scrapyard -10/Materials (discovered 5 exits: *Mat x3 / [*Min x2]) -10/Mines (discovered 2 exits: *Mat x2) -9/Materials (discovered 4 exits: [*Mat] / *Min x2 / [*Sto]) -9/Mines -9/Exiles (discovered 2 exits: [*Min x2]) -8/Mines History --------- Turn | Location | Event 3 | -11/Scrapyard | Discovered new exit (range 15) 163 | -11/Scrapyard | Entered Materials 307 | -10/Materials | Build established: Mutant 369 | -10/Materials | Discovered new exit (range 15) 494 | -10/Materials | Discovered new exit (range 12) 542 | -10/Materials | Discovered new exit (range 16) 959 | -10/Materials | Discovered new exit (range 7) 963 | -10/Materials | Derelicts attacked the area 1041 | -10/Materials | Discovered new exit (range 12) 1687 | -10/Materials | Entered Mines 1814 | -10/Mines | Identified exit to Materials 1939 | -10/Mines | Core integrity fell below 50% 2106 | -10/Mines | Excavation squad dispatched 2106 | -10/Mines | A large section of the Mines collapsed 2491 | -10/Mines | Assisted by bots powering up and referring to "LRC-V3" 2507 | -10/Mines | Discovered exit to Materials (range 12) 2696 | -10/Mines | Entered Materials 2696 | -9/Materials | Evolved 2 slots: Propulsion x1, Weapon x1 2701 | -9/Materials | Discovered new exit (range 16) 2871 | -9/Materials | Destroyed 9 combat bots 3405 | -9/Materials | Discovered new exit (range 15) 3449 | -9/Materials | Build established: Tank 3574 | -9/Materials | Discovered new exit (range 9) 3828 | -9/Materials | Discovered new exit (range 10) 4115 | -9/Materials | Entered Mines 4137 | -9/Mines | Assembled infested the area 4180 | -9/Mines | Destroyed 17 combat bots 4213 | -9/Mines | Found a damaged Exp. Sensor Array with a note attached 4219 | -9/Mines | Found Prototype Device 4260 | -9/Mines | Identified Exp. Sensor Array 4395 | -9/Mines | Met a Derelict shopkeep closing up shop 4499 | -9/Mines | Deemed a non-threat by the Exiles lab entrance 4499 | -9/Mines | Discovered new exit (range 5) 4505 | -9/Mines | Entered Exiles 4545 | -9/Exiles | Met 8R-AWN 4569 | -9/Exiles | Met EX-HEX 4632 | -9/Exiles | Met EX-DEC 4829 | -9/Exiles | Build established: Mutant 5081 | -9/Exiles | Attacked by the Exiles 5226 | -9/Exiles | Destroyed 8R-AWN 5251 | -9/Exiles | Lost 6 parts (1p5n) 5482 | -9/Exiles | Build established: Gunner 5597 | -9/Exiles | Destroyed EX-HEX 5607 | -9/Exiles | Destroyed EX-DEC 5614 | -9/Exiles | Destroyed EX-BIN 5651 | -9/Exiles | Found Prototype Device 5651 | -9/Exiles | Identified System Purifier 6255 | -9/Exiles | Discovered new exit (range 15) 6617 | -9/Exiles | Learned location of Zion (-6) 6721 | -9/Exiles | Discovered new exit (range 10) 6915 | -9/Exiles | Found Deploy-a-Sentry 7574 | -9/Exiles | Build established: Scavenger-Gunner 7618 | -9/Exiles | Left Exiles lab with Deploy-a-Sentry 7618 | -9/Exiles | Entered Mines 7625 | -8/Mines | DAS Turret deployed 7657 | -8/Mines | 99-TNT came to Exiles' defense 7660 | -8/Mines | Core integrity fell below 50% 7663 | -8/Mines | Destroyed by 99-TNT with 99-TNT's Nukerbomber Last Messages --------------- World map updated: -6/Zion. 06721_ EXIT=FOUND 06915_ Acquired Deploy-a-Sentry. 06952_ Acquired Gravity Neutralizer. 06965_ Acquired Cmb. Antigrav System. 07120_ Extracted 28 matter. 07134_ Extracted 66 matter. 07276_ Acquired Mak. Leg. 07364_ Acquired 20 matter. A strange signal echoes through the mines. LOCATION=UNKNOWN GOAL=ESCAPE 07623_ Dropped Deploy-a-Sentry. 07625_ DAS Turret deployed. 07657_ 99-TNT: "I came as fast as I could... Wait, it was you!" 07659_ DAS Turret destroyed. 07659_ Enh. Autogun destroyed. 07659_ Lgt. Treads destroyed. 07661_ Enh. Autogun destroyed. Map ----- +----------------------------------------------------+ | ????????????????????????????????? | | ????????????????????????????????? | | ????????????????????????????????? | | ????????????????????????????????? | | ????????????????????????????????? | | ????????????????????????????????? | | ????????????????????????????????? | | ????????????????????????????????? | | ????????????????????????????????? | | ????????????????????????????????? | | ????????????????????????????????? | | ????????????????????????????????? | | ????????????????????????????????? | | ????????????????????????????????? | | ????????????????????????????????? | | ??????????????????##????????????? | | ????????????????? ##???????????? | | ????????????????? ##??????????? | | ???????????????? #??????????? | | ??????????????? #??????????? | | ????########??? #???????????? | | ??### ##? #????????????? | | ??# ## #??????????????? | | ??# #???????????????? | | ?# #???????????????? | | ?# @ d #????????????????? | | ?# ##????????????????? | | ??# #?????????????????? | | ??# ##?????????????????? | | ??## ##??????????????????? | | ???# ## #####???????????????????? | | | | | | | | | | | | | | | | | | | | | | | | | | | | | | | | | | | | | | | +----------------------------------------------------+ Best States ------------- Heat Dissipation 35 Coolant Potential 50 Energy Generation 15 Energy Capacity 250 Matter Stores 300 Matter Capacity 300 Sight Range 16 Robot Scan Range 20 Terrain Scan Density 10 Armor Coverage 150 Evasion (%) 40 Core Analysis 6 Recoil Reduction 3 Item Schematics ----------------- None Robot Schematics ------------------ None Fabricated ------------ Nothing Repaired ---------- Nothing Alien Tech Used ----------------- None Achievements -------------- None Challenges ------------ None Game ------ Seed CompanionDeliveryBallwheel Manual? 0 Play Time 00:38:14 Cumulative 454.1 hours Start 2025.07.16 @ 00:08:04 End 2025.07.16 @ 01:35:02 Sessions 2 Manual Loads 0 Difficulty Rogue Special Mode None Game No. 195 Rogue 112 Adventurer 32 Explorer 51 Win Type - Total 49 Types 24/6/8/1/0/2/5/1/1/1 Lore% 95 Gallery% 91 Achievement% 84 Wizard Run 0 Options --------- Layout 2 ASCII 0 Keyboard 0 Movement Mouse Keybinds 0 Fullscreen 1 Font 32/Tamsyn Map View 50x44 Zoom Use 0% Tactical HUD 1 Map Filters NONE Filters NONE Steam 1 RUN: b23427d8-f23f-47a9-ad68-b91692bc3cb4